[Event "CCT Chesscom Classic-D1 2024"]
[Site "Online"]
[Date "2024.05.10"]
[Round "1"]
[White "Carlsen, Magnus"]
[Black "Ivic, Velimir"]
[Result "1/2-1/2"]
[ECO "B53"]
[WhiteElo "2830"]
[BlackElo "2596"]
[Annotator "TA"]
[PlyCount "57"]
[EventDate "2024.05.08"]
[EventType "k.o."]
[EventCountry "NET"]
[SourceTitle "playchess.com"]
[Source "ChessBase"]
[SourceQuality "1"]
[TimeControl "600+2"]

{[%evp 9,57,2,7,6,6,0,0,-8,0,-11,0,0,10,0,32,32,34,41,25,32,27,34,100,89,98,97,89,96,87,79,191,177,176,78,77,52,58,0,0,0,0,0,0,0,0,0,0,0,0,0]} 1. e4 {[%emt 0:00:04]} c5 {[%emt 0:00:03]} 2. Nf3 {[%emt 0:00:01]} d6 {[%emt 0:00:01]} 3. Nc3 {[%emt 0:00:02]} Nf6 {[%emt 0:00:03]} 4. d4 {[%emt 0:00:01]} cxd4 {[%emt 0:00:01]} 5. Qxd4 {[%emt 0:00:00]} Nc6 {[%emt 0:00:15]} 6. Qe3 {[%emt 0:00:01]} g6 {[%emt 0:00:04]} 7. h3 {[%emt 0:00:02]} Bg7 {[%emt 0:00:01]} 8. Bc4 {[%emt 0:00:02]} O-O {[%emt 0:00:04]} 9. O-O {[%emt 0:00:01]} Nd7 {[%emt 0:00:10]} 10. Rd1 {[%emt 0:00:18]} b6 {[%emt 0:00:28]} 11. Qf4 {[%emt 0:00:48]} Bxc3 {[%emt 0:02:19]} 12. bxc3 {[%emt 0:00:02] Black must now prevent Qh6.} Nde5 $1 {[%emt 0:00:01]} 13. Nxe5 {[%emt 0:01:03]} Nxe5 {[%emt 0:00:00]} 14. Bd5 {[%emt 0:00:02] This pair of bishops is nice.} Rb8 {[%emt 0:00:09]} 15. Qh4 {[%emt 0:00:12] Strongly threatening Bg5.} Be6 {[%emt 0:01:38] [#]} (15... e6 $1 $14 16. Qxd8 (16. Bg5 $2 f6 $17) 16... Rxd8) 16. Bg5 $1 $36 {[%emt 0:00:03][%mdl 2048] White has strong initiative.} Re8 {[%emt 0:00:00] [#]} (16... Bxd5 17. Bxe7 (17. exd5 f6 $15) 17... Qc7 18. Bxf8 (18. Rxd5 Rfe8 $18) 18... Rxf8 19. Rxd5 $18) 17. f4 $1 {[%emt 0:00:02] White is more active.} Nc4 {[%emt 0:00:01]} 18. Bxe6 {[%emt 0:01:13]} fxe6 {[%emt 0:00:02]} 19. f5 {[%emt 0:00:02]} Qc7 {[%emt 0:01:35]} (19... exf5 $16 20. exf5 Ne5 21. fxg6 hxg6) 20. fxg6 $18 {[%emt 0:00:33]} ({Not} 20. fxe6 Qc8 $11) 20... hxg6 {[%emt 0:00:03]} 21. Qh6 {[%emt 0:00:01]} (21. Rf1 $18 {[%cal Of1f7] has better winning chances. White wants to mate with Rf7!} Ne5 22. Kh2) 21... Ne5 $16 {[%emt 0:00:01][%cal Oe8f8]} 22. Bf4 {[%emt 0:00:04] Bxe5 would kill now.} Qxc3 {[%emt 0:00:10]} 23. Kh1 {[%emt 0:00:29]} (23. Bxe5 $14 Qxe5 24. Qxg6+ Kh8 25. Qh6+ Kg8 26. Rd3 Qxa1+ 27. Kh2 Qe5+ (27... Qxa2 28. Rg3+ Kf7 29. Qg7#) 28. Rg3+ Qxg3+ (28... Kf7 29. Qg6+ Kf8 30. Qg8#) 29. Kxg3) 23... Rf8 $11 {[%emt 0:00:25] The position is equal.} 24. Bxe5 {[%emt 0:00:02]} Qxe5 {[%emt 0:00:02]} 25. Qxg6+ {[%emt 0:00:01]} Kh8 {[%emt 0:00:01]} 26. Qh6+ {[%emt 0:00:01]} Kg8 {[%emt 0:00:01][%cal Of8f6]} 27. Qg6+ {[%emt 0:00:00]} Kh8 {[%emt 0:00:01]} 28. Qh6+ {[%emt 0:00:01]} Kg8 {[%emt 0:00:00][%cal Of8f6]} 29. Qg6+ {[%emt 0:00:00] Weighted Error Value: White=0.10 (very precise) /Black=0.16 (very precise) .  Mistake:       	White=2     	Black=2      Inaccurate:     	---       	Black=1      OK:         	White=10    	Black=8      Best:        	White=1     	Black=2      Strong:       	White=2     	Black=1} 1/2-1/2

[Event "CCT Chesscom Classic-D1 2024"]
[Site "Online"]
[Date "2024.05.10"]
[Round "1"]
[White "Carlsen, Magnus"]
[Black "Ivic, Velimir"]
[Result "1-0"]
[ECO "B92"]
[WhiteElo "2830"]
[BlackElo "2596"]
[Annotator "TA"]
[PlyCount "101"]
[EventDate "2024.05.08"]
[EventType "k.o."]
[EventCountry "NET"]
[SourceTitle "playchess.com"]
[Source "ChessBase"]
[SourceQuality "1"]
[TimeControl "600+2"]

{[%evp 16,101,21,9,16,9,1,4,14,0,31,0,0,10,9,0,48,45,27,30,40,45,36,46,35,33,52,44,46,45,49,50,61,53,61,61,64,66,65,85,71,64,65,54,58,56,56,56,56,56,56,56,56,56,56,45,56,56,56,56,56,56,56,56,75,0,56,56,64,61,99,93,124,121,138,139,225,225,231,229,347,350,568,561,1149,1176,1625,1576]} 1. e4 {[%emt 0:00:08]} c5 {[%emt 0:00:04]} 2. Nf3 {[%emt 0:00:03]} d6 {[%emt 0:00:01]} 3. d4 {[%emt 0:00:08]} cxd4 {[%emt 0:00:01]} 4. Nxd4 {[%emt 0:00:00]} Nf6 {[%emt 0:00:01]} 5. Nc3 {[%emt 0:00:02]} a6 {[%emt 0:00:01]} 6. Be2 {[%emt 0:00:01]} e5 {[%emt 0:00:03]} 7. Nb3 {[%emt 0:00:02]} Be7 {[%emt 0:00:07]} 8. O-O {[%emt 0:00:01]} O-O {[%emt 0:00:03]} 9. Re1 {[%emt 0:00:18]} Be6 {[%emt 0:00:04]} 10. Bf3 {[%emt 0:00:03]} Nbd7 {[%emt 0:00:05]} 11. a4 {[%emt 0:00:02][%cal Ba2a4,Ba4a5][%mdl 32]} Rc8 {[%emt 0:00:09] The position is equal.} 12. Nd2 {[%emt 0:00:28]} Nb6 {[%emt 0:01:25]} 13. a5 {[%emt 0:00:18]} Nc4 {[%emt 0:00:04]} 14. Nxc4 {[%emt 0:00:00]} Rxc4 {[%emt 0:00:02]} 15. Be3 {[%emt 0:00:00]} Qb8 {[%emt 0:00:26]} (15... Qc7 $11 {might be stronger.}) 16. Na4 {[%emt 0:00:28]} Bd8 {[%emt 0:00:32]} 17. b3 {[%emt 0:00:07]} Rc6 {[%emt 0:00:05]} 18. Nb6 {[%emt 0:00:39]} Bxb6 {[%emt 0:00:36]} 19. Bxb6 {[%emt 0:00:04]} Rc3 {[%emt 0:00:12]} 20. Re3 {[%emt 0:00:44]} Rfc8 {[%emt 0:00:16]} 21. Rxc3 {[%emt 0:00:02]} Rxc3 {[%emt 0:00:00]} 22. Be3 {[%emt 0:00:25]} Qc7 {[%emt 0:01:38]} 23. Ra2 {[%emt 0:00:10]} Qd7 {[%emt 0:01:28]} 24. Bd2 {[%emt 0:00:23]} Rc6 {[%emt 0:00:01]} 25. c4 {[%emt 0:00:04]} Bg4 {[%emt 0:00:06]} 26. Bxg4 {[%emt 0:00:02]} Nxg4 {[%emt 0:00:05]} 27. f3 {[%emt 0:00:12]} Nf6 {[%emt 0:00:01][%cal Bg4f6,Bf6d7,Bd7c5][%mdl 32]} 28. Be3 {[%emt 0:00:05]} Qc7 {[%emt 0:00:33]} 29. Bb6 {[%emt 0:00:02]} Qb8 {[%emt 0:00:10]} 30. Rd2 {[%emt 0:00:23]} Nd7 {[%emt 0:00:02] Dodges c5} 31. Be3 {[%emt 0:00:02]} Qc7 {[%emt 0:00:04]} 32. Qa1 {[%emt 0:01:15]} Nc5 {[%emt 0:00:03]} 33. Qc3 {[%emt 0:00:09]} h6 {[%emt 0:00:04]} 34. Rd5 {[%emt 0:00:01]} Nd7 {[%emt 0:00:02]} 35. h3 {[%emt 0:00:08]} Nf6 {[%emt 0:00:09]} 36. Rd3 {[%emt 0:00:04]} Nd7 {[%emt 0:00:05]} 37. Kh2 {[%emt 0:00:02]} Kh7 {[%emt 0:00:02]} 38. Qd2 {[%emt 0:00:15]} Kg8 {[%emt 0:00:45]} 39. Bf2 {[%emt 0:00:18]} Kh7 {[%emt 0:00:18]} 40. Be3 {[%emt 0:00:08] White is more active.} Kg8 $1 {[%emt 0:00:01]} 41. Kg1 {[%emt 0:00:50]} Kh7 {[%emt 0:00:31]} 42. Kh1 {[%emt 0:00:17]} Kg8 {[%emt 0:00:05]} 43. b4 {[%emt 0:00:01]} Rxc4 {[%emt 0:00:26]} 44. Rxd6 {[%emt 0:00:02]} Nf6 {[%emt 0:00:03]} 45. Bc5 {[%emt 0:00:27]} Kh7 {[%emt 0:00:14]} (45... Nh5 $16 {was called for.}) 46. Qd3 $18 {[%emt 0:00:33]} Rc1+ {[%emt 0:00:02]} 47. Kh2 {[%emt 0:00:01]} Qc8 {[%emt 0:00:03]} (47... Kg8 {keeps fighting.} 48. Qa3 Rf1) 48. Qd2 {[%emt 0:00:04]} Rc4 {[%emt 0:00:03] [#]} (48... Rf1 {was necessary.} 49. Qe2 Rc1) 49. Qa2 {[%emt 0:00:02] White is clearly winning.} Ne8 {[%emt 0:00:14]} 50. Rb6 {[%emt 0:00:33]} Rc1 {[%emt 0:00:04]} 51. Qxf7 {[%emt 0:00:02] Weighted Error Value: White=0.04 (flawless) /Black=0.23 (precise) .  Mistake:       	---       	Black=4      Inaccurate:     	---       	Black=5      OK:         	White=18    	Black=15     Best:        	White=4     	Black=1      Strong:       	---       	Black=1} 1-0

[Event "CCT Chesscom Classic-D1 2024"]
[Site "Online"]
[Date "2024.05.10"]
[Round "1"]
[White "Nepomniachtchi, Ian"]
[Black "Lazavik, Denis"]
[Result "1-0"]
[ECO "C67"]
[WhiteElo "2770"]
[BlackElo "2572"]
[Annotator "TA"]
[PlyCount "153"]
[EventDate "2024.05.08"]
[EventType "k.o."]
[EventCountry "NET"]
[SourceTitle "playchess.com"]
[Source "ChessBase"]
[SourceQuality "1"]
[TimeControl "600+2"]

{[%evp 55,153,29,35,41,35,18,15,14,14,9,9,7,4,6,10,12,10,5,5,5,8,8,8,6,8,0,8,0,8,0,8,0,8,8,8,8,8,0,12,8,8,8,8,8,12,8,8,8,8,8,8,8,8,8,8,8,9,8,8,8,8,0,9,9,9,10,23,23,491,375,349,349,651,319,29961,29963,29963,29964,29963,116,29973,29974,29974,29974,29975,29975,29974,29975,29975,29974,29974,29958,29975,29976,29979,29980,29980,29981,29994,29995]} 1. e4 {[%emt 0:00:02]} e5 {[%emt 0:00:03]} 2. Nf3 {[%emt 0:00:02]} Nc6 {[%emt 0:00:01]} 3. Bb5 {[%emt 0:00:00]} Nf6 {[%emt 0:00:01]} 4. O-O {[%emt 0:00:01]} Nxe4 {[%emt 0:00:01]} 5. d4 {[%emt 0:00:01]} Nd6 {[%emt 0:00:01]} 6. Ba4 {[%emt 0:00:00] C67: Ruy Lopez: Berlin Defence: 4 0-0 Nxe4.} exd4 {[%emt 0:00:05]} 7. c3 {[%emt 0:00:02]} Be7 {[%emt 0:00:01]} 8. cxd4 {[%emt 0:00:01]} O-O {[%emt 0:00:01]} 9. Nc3 {[%emt 0:00:01] 9.Nc3 was played by the boomers.} Nc4 {[%emt 0:00:04]} 10. d5 {[%emt 0:00:01]} N6e5 {[%emt 0:00:02]} 11. Bc2 $146 {[%emt 0:00:01]} ({Predecessor:} 11. Nxe5 Nxe5 12. f4 Nc4 13. Qd3 Nb6 14. Bc2 f5 15. a4 a5 16. Nb5 d6 17. Ra3 {1-0 Kislinsky,A (2565)-Schreiner,P (2456) Mitropa Cup 32nd 2013 (9.3)}) 11... d6 {[%emt 0:00:07]} 12. Nd4 {[%emt 0:00:02]} Bf6 {[%emt 0:00:46]} 13. Ne4 {[%emt 0:00:03]} c5 {[%emt 0:01:18]} 14. dxc6 {[%emt 0:00:07]} bxc6 {[%emt 0:00:01]} 15. Nxc6 {[%emt 0:00:09]} Nxc6 {[%emt 0:00:11]} 16. Qd3 {[%emt 0:00:06]} Bf5 {[%emt 0:00:22]} 17. Nxf6+ {[%emt 0:00:19]} Qxf6 {[%emt 0:00:02]} 18. Qxf5 {[%emt 0:00:00]} Qxf5 {[%emt 0:00:02]} 19. Bxf5 {[%emt 0:00:00]} Nd4 {[%emt 0:00:13]} 20. Bg4 {[%emt 0:00:52]} Ne5 {[%emt 0:00:52]} 21. Bd1 {[%emt 0:00:03]} Nd3 {[%emt 0:00:05]} 22. Bd2 {[%emt 0:00:29]} Rfe8 {[%emt 0:00:50]} 23. b3 {[%emt 0:00:06]} a5 {[%emt 0:01:53]} 24. g3 {[%emt 0:00:09]} h6 {[%emt 0:00:27]} 25. h4 {[%emt 0:00:10]} Rec8 {[%emt 0:01:01]} 26. Rb1 {[%emt 0:00:15]} Nb4 {[%emt 0:00:23]} 27. a3 {[%emt 0:00:12]} Nbc2 {[%emt 0:00:01]} 28. a4 {[%emt 0:00:03]} Rab8 {[%emt 0:00:08]} 29. Bxa5 {[%emt 0:01:17]} Nxb3 {[%emt 0:00:02]} 30. Bxc2 {[%emt 0:00:30]} Rxc2 {[%emt 0:00:02]} 31. Rfd1 {[%emt 0:00:02]} Rc4 {[%emt 0:00:23]} 32. Bd2 {[%emt 0:01:52]} Rxa4 {[%emt 0:00:08]} 33. Bf4 {[%emt 0:00:01]} Rb7 {[%emt 0:00:16]} 34. Rxd6 {[%emt 0:00:17]} Ra1 {[%emt 0:00:09]} 35. Rxa1 {[%emt 0:00:22]} Nxa1 {[%emt 0:00:00]} 36. Rc6 {[%emt 0:00:10]} Nb3 {[%emt 0:00:03]} 37. Be3 {[%emt 0:00:02]} Rd7 {[%emt 0:00:03]} 38. Rc4 {[%emt 0:00:06]} Nd2 {[%emt 0:00:09]} 39. Rf4 {[%emt 0:00:02]} Nb1 {[%emt 0:00:12]} 40. Bd4 {[%emt 0:00:06]} Nd2 {[%emt 0:00:11]} 41. Be3 {[%emt 0:00:18]} Nb1 {[%emt 0:00:04]} 42. Bd4 {[%emt 0:00:14]} Nd2 {[%emt 0:00:01]} 43. Kg2 {[%emt 0:00:00]} Nb3 {[%emt 0:00:07]} 44. Be3 {[%emt 0:00:03]} Rc7 {[%emt 0:00:05]} 45. Rf5 {[%emt 0:00:05]} Rd7 {[%emt 0:00:01]} 46. Rf4 {[%emt 0:00:25]} Rc7 {[%emt 0:00:01]} 47. h5 {[%emt 0:00:14]} Nc5 {[%emt 0:00:03]} 48. g4 {[%emt 0:00:07]} Ne6 {[%emt 0:00:01]} 49. Ra4 {[%emt 0:00:02]} f6 {[%emt 0:00:02]} 50. f4 {[%emt 0:00:04]} Kf7 {[%emt 0:00:02]} 51. Kf3 {[%emt 0:00:02]} Rd7 {[%emt 0:00:03]} 52. Ra6 {[%emt 0:00:11]} Re7 {[%emt 0:00:03]} 53. Rb6 {[%emt 0:00:02]} Rd7 {[%emt 0:00:02]} 54. Ke4 {[%emt 0:00:10]} Nf8 {[%emt 0:00:03]} 55. Bc5 {[%emt 0:00:08]} Ne6 {[%emt 0:00:04]} 56. Bd6 {[%emt 0:00:01]} Ra7 {[%emt 0:00:04]} 57. Bb4 {[%emt 0:00:16]} Rd7 {[%emt 0:00:02]} 58. Bd6 {[%emt 0:00:10]} Ra7 {[%emt 0:00:01]} 59. Rb8 {[%emt 0:00:05]} Rd7 {[%emt 0:00:05]} 60. Kd5 {[%emt 0:00:25]} Nxf4+ {[%emt 0:00:10]} 61. Kc6 {[%emt 0:00:00]} Rxd6+ $4 {[%emt 0:00:00][%mdl 8192]} (61... Ra7 $1 $11 {and Black has nothing to worry.}) 62. Kxd6 $18 {[%emt 0:00:01]} Nd3 {[%emt 0:00:01]} 63. Rb7+ {[%emt 0:00:04]} Kf8 $2 {[%emt 0:00:03]} (63... Kg8 64. Ke7 Nc5) 64. Ra7 {[%emt 0:00:02]} (64. Rb3 $142 Ne5 65. Ke6) 64... Ne5 $2 {[%emt 0:00:04]} (64... Nf4 $18 65. Ra3 Kf7) 65. Ke6 {[%emt 0:00:01]} Kg8 {[%emt 0:00:01]} 66. Ra4 {[%emt 0:00:19]} Kh7 {[%emt 0:00:13]} 67. Ke7 {[%emt 0:00:01]} Nf3 $2 {[%emt 0:00:03][%mdl 8192]} (67... Kg8 $16 68. Ra8+ Kh7) 68. Kf8 {[%emt 0:00:06]} Ng5 {[%emt 0:00:01]} 69. Ra6 {[%emt 0:00:04]} Kh8 {[%emt 0:00:04]} 70. Ra7 {[%emt 0:00:02]} Ne6+ {[%emt 0:00:01]} 71. Kf7 {[%emt 0:00:00]} Nf4 {[%emt 0:00:00]} 72. Ra4 {[%emt 0:00:07]} Nd3 {[%emt 0:00:01]} 73. Ra8+ {[%emt 0:00:15]} Kh7 {[%emt 0:00:01]} 74. Ra7 {[%emt 0:00:00]} Nf4 {[%emt 0:00:04]} 75. Rd7 {[%emt 0:00:01]} Kh8 {[%emt 0:00:04]} 76. Rd4 {[%emt 0:00:03]} Nh3 {[%emt 0:00:02]} 77. Kg6 {[%emt 0:00:01]} 1-0

[Event "CCT Chesscom Classic-D1 2024"]
[Site "Online"]
[Date "2024.05.10"]
[Round "1"]
[White "Firouzja, Alireza"]
[Black "Duda, Jan-Krzysztof"]
[Result "0-1"]
[ECO "C65"]
[WhiteElo "2738"]
[BlackElo "2734"]
[Annotator "TA"]
[PlyCount "84"]
[EventDate "2024.05.08"]
[EventType "k.o."]
[EventCountry "NET"]
[SourceTitle "playchess.com"]
[Source "ChessBase"]
[SourceQuality "1"]
[TimeControl "600+2"]

{[%evp 9,84,8,22,9,19,7,10,0,25,0,0,-14,0,0,19,9,19,0,0,2,17,4,0,13,10,0,12,0,0,3,0,0,0,0,0,-61,-59,-56,0,12,25,22,0,9,26,47,38,37,54,48,53,48,92,104,91,106,142,0,0,0,0,0,0,-29,-37,-46,-54,-154,-168,-287,-283,-551,-534,-449,-433,-29971,-12564]} 1. e4 {[%emt 0:00:02]} e5 {[%emt 0:00:07]} 2. Nf3 {[%emt 0:00:01]} Nc6 {[%emt 0:00:04]} 3. Bb5 {[%emt 0:00:08]} Nf6 {[%emt 0:00:02]} 4. d3 {[%emt 0:00:02]} Bc5 {[%emt 0:00:01]} 5. c3 {[%emt 0:00:28]} d5 {[%emt 0:00:04]} 6. Nbd2 {[%emt 0:00:02]} dxe4 {[%emt 0:00:06]} 7. dxe4 {[%emt 0:00:01]} O-O {[%emt 0:00:02]} 8. O-O {[%emt 0:00:01] The position is equal.} a5 {[%emt 0:00:03]} 9. h3 {[%emt 0:00:05]} Qe7 {[%emt 0:00:04]} 10. Qc2 {[%emt 0:00:07]} Nb8 {[%emt 0:00:08][%cal Bc6b8,Bb8d7,Bd7f6][%mdl 32]} 11. a4 {[%emt 0:00:08]} Nbd7 {[%emt 0:00:10]} 12. Re1 {[%emt 0:00:07]} Re8 {[%emt 0:00:07]} 13. Nf1 {[%emt 0:00:22]} c6 {[%emt 0:00:07]} 14. Be2 {[%emt 0:00:07]} Nh5 {[%emt 0:00:54]} 15. Bg5 {[%emt 0:00:12]} Ndf6 {[%emt 0:00:11]} 16. Rad1 {[%emt 0:00:29]} h6 {[%emt 0:00:07]} 17. Bc1 {[%emt 0:00:01]} Qc7 {[%emt 0:00:13]} 18. Ne3 {[%emt 0:00:32]} Nf4 {[%emt 0:00:08]} 19. Bf1 {[%emt 0:00:05]} Be6 {[%emt 0:00:08]} 20. Nc4 {[%emt 0:01:04]} Ng6 {[%emt 0:00:05]} 21. Bd2 {[%emt 0:00:53]} b5 {[%emt 0:00:25]} 22. Ne3 {[%emt 0:00:02]} (22. Be3 $1 $11) 22... bxa4 $15 {[%emt 0:00:45] aiming for ...Bb3. Black is much more active.} 23. Qxa4 {[%emt 0:00:12]} Rab8 {[%emt 0:00:06]} (23... Reb8 $15 24. Nc4 Bxc4 25. Qxc4 Qa7) 24. b4 $11 {[%emt 0:00:20]} Bb6 {[%emt 0:01:05]} 25. Nc4 {[%emt 0:00:35] White wants to play Nxb6.} Bxc4 {[%emt 0:00:40]} 26. Bxc4 {[%emt 0:00:00]} Ra8 {[%emt 0:00:01]} 27. Qc2 {[%emt 0:00:08]} Ra7 {[%emt 0:00:06]} 28. g3 {[%emt 0:00:07]} Kh7 {[%emt 0:00:34]} 29. Kg2 {[%emt 0:00:02]} Nf8 {[%emt 0:00:14] [#]} 30. Nxe5 $1 {[%emt 0:01:41]} Rxe5 {[%emt 0:00:22]} (30... Qxe5 $2 31. Bf4 Qh5 32. e5+ Kh8 (32... Qg6 $2 33. Bd3 $18) 33. exf6 Rxe1 34. Rxe1 gxf6 35. Qe4 $18) (30... Bxf2 31. Bf4) 31. f4 {[%emt 0:00:02]} Nh5 {[%emt 0:00:23]} 32. fxe5 {[%emt 0:00:25]} Qxe5 {[%emt 0:00:00] [#]} 33. Qd3 {[%emt 0:00:05]} ({White must play} 33. Bf4 $1 $16 {[%cal Rf4e5]} Nxf4+ 34. gxf4 Qxf4 35. Rf1 Qg5+ 36. Kh1) 33... Ng6 {[%emt 0:01:26][%cal Oa7d7] Hoping for ...Rd7!} 34. Qf3 {[%emt 0:01:20]} axb4 {[%emt 0:00:18]} 35. cxb4 {[%emt 0:00:12][%cal Od2c3] Strongly threatening Bc3!} (35. Bxf7 Rxf7 36. Bf4 Nhxf4+ (36... Qxc3 $2 37. Qxh5 Rxf4 38. Re2 $19) (36... Ngxf4+ $2 37. Kh1 $19) 37. gxf4 Rxf4 38. Qg3 Nh4+ (38... Rxe4 $2 39. Qxe5 Rxe5 40. Rxe5 $19) (38... Rxe4 $2 39. Qxe5 Rxe5 40. Rxe5 $19)) 35... Bc7 {[%emt 0:00:10][%cal Og6h4] ...Nh4+! would now be deadly. Some like it hot} 36. Re3 {[%emt 0:00:21][%cal Od2c1] Threatens to win with Bc1!} (36. Bxf7 $2 Nh4+ (36... Qxg3+ $2 37. Qxg3 Bxg3 38. Bxg6+ Kxg6 39. Re2 $18) 37. Kf1 Nxf3 $19) 36... Nxg3 $1 {[%emt 0:00:31]} 37. Qxg3 {[%emt 0:00:13]} Qd4 $36 {[%emt 0:00:01][%mdl 2048] Black has some pressure.} 38. Qf2 {[%emt 0:00:19]} ({Better is} 38. Qg4 $15 Qxc4 39. Rc3 Qxb4 (39... Nf4+ 40. Kh1 $14) 40. Rf3) 38... Qxc4 $17 {[%emt 0:00:06]} 39. Rf3 {[%emt 0:00:13]} (39. Kh1 {is a better defense.}) 39... Qxe4 $1 $19 {[%emt 0:00:05] White must now prevent ...Nh4+.} 40. Kg1 $2 {[%emt 0:00:02] [#]} (40. Kf1 {was forced.} Nh4 41. Re3 Qc4+ (41... Qh1+ 42. Ke2 $11) 42. Ke1) 40... Bb6 $1 {[%emt 0:00:16][%cal Oe4f3][%mdl 512]} 41. Be3 {[%emt 0:00:01]} Ra2 {[%emt 0:00:02]} (41... Nh4 42. Rg3 $19) 42. Qg3 {[%emt 0:00:07]} (42. Qxa2 $19 Qxf3 43. Bxb6 Qxd1+ 44. Kf2) 42... Nh4 {[%emt 0:00:06] Weighted Error Value: White=0.42/Black=0.07 (flawless) .  Mistake:       	White=6     	Black=1      Inaccurate:     	White=1     	Black=2      OK:         	White=7     	Black=13     Best:        	White=2     	Black=5      Strong:       	---       	Black=2      Brilliant:      	---       	Black=1} (42... Qxb4 43. Bxb6 Qxb6+ 44. Kh1 $11) 0-1

[Event "CCT Chesscom Classic-D1 2024"]
[Site "Online"]
[Date "2024.05.10"]
[Round "1"]
[White "Firouzja, Alireza"]
[Black "Duda, Jan-Krzysztof"]
[Result "1/2-1/2"]
[ECO "C43"]
[WhiteElo "2738"]
[BlackElo "2734"]
[Annotator "ChessBase"]
[PlyCount "169"]
[EventDate "2024.05.08"]
[EventType "k.o."]
[EventCountry "NET"]
[SourceTitle "playchess.com"]
[Source "ChessBase"]
[SourceQuality "1"]
[TimeControl "600+2"]

1. e4 {[%emt 0:00:02]} e5 {[%emt 0:00:04]} 2. Nf3 {[%emt 0:00:01]} Nf6 {[%emt 0:00:01]} 3. d4 {[%emt 0:00:02]} Nxe4 {[%emt 0:00:02]} 4. Bd3 {[%emt 0:00:01]} d5 {[%emt 0:00:03]} 5. dxe5 {[%emt 0:00:01]} Nc5 {[%emt 0:00:22]} 6. Be2 {[%emt 0:00:01]} Be7 {[%emt 0:00:02]} 7. O-O {[%emt 0:00:01]} O-O {[%emt 0:00:05]} 8. Re1 {[%emt 0:00:12]} c6 {[%emt 0:00:08]} 9. Nbd2 {[%emt 0:00:07]} Nbd7 {[%emt 0:00:15]} 10. Nb3 {[%emt 0:00:52]} f6 {[%emt 0:00:28]} 11. exf6 {[%emt 0:00:11]} Nxf6 {[%emt 0:00:03]} 12. Be3 {[%emt 0:00:04]} Nce4 {[%emt 0:00:04]} 13. h3 {[%emt 0:00:10]} a5 {[%emt 0:00:26]} 14. c3 {[%emt 0:02:07]} a4 {[%emt 0:00:08]} 15. Nbd2 {[%emt 0:00:28]} a3 {[%emt 0:00:09]} 16. Qc1 {[%emt 0:00:02]} axb2 {[%emt 0:00:13]} 17. Qxb2 {[%emt 0:00:00]} b5 {[%emt 0:00:19]} 18. Nd4 {[%emt 0:00:22]} Qd6 {[%emt 0:00:07]} 19. Bf3 {[%emt 0:00:37]} Bd7 {[%emt 0:00:48]} 20. N4b3 {[%emt 0:00:01]} Qa3 {[%emt 0:00:59]} 21. Qc2 {[%emt 0:00:04]} Ra4 {[%emt 0:00:29]} 22. Bd4 {[%emt 0:00:51]} Bf5 {[%emt 0:00:26]} 23. Qd1 {[%emt 0:01:11]} Nxd2 {[%emt 0:01:29]} 24. Qxd2 {[%emt 0:00:17]} Ne4 {[%emt 0:00:01]} 25. Bxe4 {[%emt 0:00:08]} dxe4 {[%emt 0:00:01]} 26. Qe3 {[%emt 0:00:00]} Rf7 {[%emt 0:00:55]} 27. Rad1 {[%emt 0:00:29]} Qxa2 {[%emt 0:00:09]} 28. c4 {[%emt 0:01:04]} bxc4 {[%emt 0:00:18]} 29. Nc5 {[%emt 0:00:23]} Ra3 {[%emt 0:00:13]} 30. Qf4 {[%emt 0:00:05]} c3 {[%emt 0:00:13]} 31. Nxe4 {[%emt 0:00:37]} c2 {[%emt 0:00:17]} 32. Rc1 {[%emt 0:00:01]} Qd5 {[%emt 0:00:27]} 33. Ng3 {[%emt 0:00:21]} Bxh3 {[%emt 0:00:33]} 34. Qe4 {[%emt 0:00:02]} Qxe4 {[%emt 0:00:16]} 35. Rxe4 {[%emt 0:00:00]} Rxg3 {[%emt 0:00:12]} 36. fxg3 {[%emt 0:00:08]} Bf5 {[%emt 0:00:01]} 37. Re2 {[%emt 0:00:03]} c5 {[%emt 0:00:05]} 38. Bf2 {[%emt 0:00:05]} Bf8 {[%emt 0:00:04]} 39. g4 {[%emt 0:00:02]} Bg6 {[%emt 0:00:05]} 40. Rexc2 {[%emt 0:00:05]} Bxc2 {[%emt 0:00:02]} 41. Rxc2 {[%emt 0:00:00]} Rc7 {[%emt 0:00:00]} 42. Kf1 {[%emt 0:00:02]} c4 {[%emt 0:00:02]} 43. Ke2 {[%emt 0:00:01]} Kf7 {[%emt 0:00:04]} 44. Kf3 {[%emt 0:00:01]} Be7 {[%emt 0:00:08]} 45. Ke4 {[%emt 0:00:05]} Kg6 {[%emt 0:00:03]} 46. Bg3 {[%emt 0:00:03]} Rc8 {[%emt 0:00:02]} 47. Bf4 {[%emt 0:00:01]} Bf6 {[%emt 0:00:03]} 48. g3 {[%emt 0:00:03]} h6 {[%emt 0:00:02]} 49. Kd5 {[%emt 0:00:02]} c3 {[%emt 0:00:01]} 50. Ke4 {[%emt 0:00:00]} Kf7 {[%emt 0:00:02]} 51. Kd3 {[%emt 0:00:04]} Ke6 {[%emt 0:00:04]} 52. Ra2 {[%emt 0:00:01]} Rd8+ {[%emt 0:00:01]} 53. Kc2 {[%emt 0:00:01]} Kd5 {[%emt 0:00:01]} 54. g5 {[%emt 0:00:04]} hxg5 {[%emt 0:00:08]} 55. Bxg5 {[%emt 0:00:00]} Rc8 {[%emt 0:00:04]} 56. Ra6 {[%emt 0:00:05]} Bd4 {[%emt 0:00:04]} 57. Bf4 {[%emt 0:00:02]} Rc4 {[%emt 0:00:02]} 58. Kd3 {[%emt 0:00:00]} Rb4 {[%emt 0:00:02]} 59. Rd6+ {[%emt 0:00:02]} Kc5 {[%emt 0:00:00]} 60. Rd8 {[%emt 0:00:00]} Ra4 {[%emt 0:00:01]} 61. Rc8+ {[%emt 0:00:02]} Kb5 {[%emt 0:00:01]} 62. Rb8+ {[%emt 0:00:00]} Kc6 {[%emt 0:00:01]} 63. Rc8+ {[%emt 0:00:02]} Kd7 {[%emt 0:00:01]} 64. Rc7+ {[%emt 0:00:06]} Ke6 {[%emt 0:00:02]} 65. Rc8 {[%emt 0:00:04]} Bf6 {[%emt 0:00:01]} 66. Rc5 {[%emt 0:00:02]} Rd4+ {[%emt 0:00:04]} 67. Kc2 {[%emt 0:00:00]} Re4 {[%emt 0:00:01]} 68. Kd3 {[%emt 0:00:01]} Re1 {[%emt 0:00:01]} 69. g4 {[%emt 0:00:02]} Rd1+ {[%emt 0:00:05]} 70. Ke2 {[%emt 0:00:01]} Rd4 {[%emt 0:00:05]} 71. Kf3 {[%emt 0:00:01]} Rd3+ {[%emt 0:00:02]} 72. Ke4 {[%emt 0:00:01]} Rd4+ {[%emt 0:00:01]} 73. Kf3 {[%emt 0:00:00]} Ra4 {[%emt 0:00:03]} 74. Be3 {[%emt 0:00:08]} Ra3 {[%emt 0:00:03]} 75. Ke4 {[%emt 0:00:02]} Ra4+ {[%emt 0:00:02]} 76. Kf3 {[%emt 0:00:01]} Be5 {[%emt 0:00:01]} 77. Rc6+ {[%emt 0:00:03]} Kd5 {[%emt 0:00:01]} 78. Rc5+ {[%emt 0:00:00]} Kd6 {[%emt 0:00:00]} 79. Rc8 {[%emt 0:00:01]} Ra2 {[%emt 0:00:05]} 80. Ke4 {[%emt 0:00:01]} Ra4+ {[%emt 0:00:02]} 81. Kf3 {[%emt 0:00:01]} Kd7 {[%emt 0:00:00]} 82. Rc5 {[%emt 0:00:01]} Ke6 {[%emt 0:00:02]} 83. Rc6+ {[%emt 0:00:01]} Ke7 {[%emt 0:00:04]} 84. Rc5 {[%emt 0:00:02]} Kd6 {[%emt 0:00:02]} 85. Rc8 {[%emt 0:00:01]} 1/2-1/2